fUSD/lending_fUSD_20260517
["ID","MTS","AMOUNT","RATE_DAILY","PERIOD"]
[422496604,1778999445000,-1254.65,0.00027295,2]
[422496605,1778999445000,-1254.65,0.00027297,2]
[422496608,1778999445000,-1254.67,0.00027299,2]
[422496606,1778999445000,-1254.65,0.00027297,2]
[422496607,1778999445000,-1254.65,0.00027297,2]
[422496612,1778999445000,-150.0,0.00027306,4]
[422496613,1778999445000,-150.0,0.00027306,4]
[422496611,1778999445000,-150.0,0.00027299,4]
[422496610,1778999445000,-1254.65,0.00027299,2]
[422496615,1778999445000,-150.0,0.00027314,4]
[422496623,1778999445000,-150.0,0.00027385,4]
[422496614,1778999445000,-164.95214832,0.00027312,4]
[422496616,1778999445000,-163.6,0.00027315,2]
[422496620,1778999445000,-150.0,0.00027364,4]
[422496622,1778999445000,-164.95214832,0.00027372,4]
[422496619,1778999445000,-152.0,0.00027361,4]
[422496621,1778999445000,-150.0,0.00027372,4]
[422496617,1778999445000,-204.0,0.00027339,2]
[422496567,1778999445000,-614.0,0.00027123,2]
[422496618,1778999445000,-164.95214832,0.00027342,4]
[422496595,1778999445000,-217.809362,0.00027238,2]
[422496593,1778999445000,-455.147833,0.00027238,2]
[422496609,1778999445000,-1254.65,0.00027299,2]
[422496601,1778999445000,-150.0,0.00027276,4]
[422496596,1778999445000,-151.0,0.00027238,2]
[422496580,1778999445000,-823.0,0.00027172,2]
[422496570,1778999445000,-614.0,0.00027123,2]
[422496575,1778999445000,-152.0,0.00027123,2]
[422496573,1778999445000,-614.0,0.00027123,2]
[422496578,1778999445000,-603.0,0.00027137,2]
[422496577,1778999445000,-164.95214832,0.00027129,4]
[422496571,1778999445000,-614.0,0.00027123,2]
[422496574,1778999445000,-620.79305125,0.00027123,2]
[422496576,1778999445000,-849.0,0.00027123,2]
[422496579,1778999445000,-164.95214832,0.00027159,4]
[422496589,1778999445000,-455.147833,0.00027238,2]
[422496583,1778999445000,-150.0,0.00027199,4]
[422496569,1778999445000,-614.0,0.00027123,2]
[422496597,1778999445000,-151.0,0.00027238,2]
[422496581,1778999445000,-150.0,0.00027187,4]
[422496600,1778999445000,-164.95214832,0.00027251,4]
[422496592,1778999445000,-151.0,0.00027238,2]
[422496588,1778999445000,-455.147833,0.00027238,2]
[422496586,1778999445000,-164.95214832,0.0002722,4]
[422496591,1778999445000,-455.147833,0.00027238,2]
[422496582,1778999445000,-164.95214832,0.0002719,4]
[422496590,1778999445000,-151.0,0.00027238,2]
[422496584,1778999445000,-150.0,0.00027202,4]
[422496587,1778999445000,-2682.57183977,0.00027222,2]
[422496585,1778999445000,-150.0,0.00027202,4]
[422496661,1778999446000,-915.0,0.00027397,2]
[422496662,1778999446000,-915.0,0.00027397,2]
[422496660,1778999446000,-915.0,0.00027397,2]
[422496671,1778999446000,-151.0,0.00027397,2]
[422496657,1778999446000,-915.0,0.00027397,2]
[422496650,1778999446000,-915.0,0.00027397,2]
[422496655,1778999446000,-150.0,0.00027397,2]
[422496656,1778999446000,-915.0,0.00027397,2]
[422496654,1778999446000,-915.0,0.00027397,2]
[422496663,1778999446000,-915.0,0.00027397,2]
[422496653,1778999446000,-915.0,0.00027397,2]
[422496658,1778999446000,-915.0,0.00027397,2]
[422496664,1778999446000,-915.0,0.00027397,2]
[422496678,1778999446000,-217.688158,0.00027397,2]
[422496668,1778999446000,-659.567732,0.00027397,2]
[422496666,1778999446000,-915.0,0.00027397,2]
[422496665,1778999446000,-915.0,0.00027397,2]
[422496669,1778999446000,-659.567732,0.00027397,2]
[422496667,1778999446000,-933.0,0.00027397,2]
[422496679,1778999446000,-217.688158,0.00027397,2]
[422496681,1778999446000,-217.688158,0.00027397,2]
[422496672,1778999446000,-659.567732,0.00027397,2]
[422496676,1778999446000,-2786.56284,0.00027397,2]
[422496677,1778999446000,-217.688158,0.00027397,2]
[422496674,1778999446000,-2786.56284,0.00027397,2]
[422496682,1778999446000,-260.765126,0.00027397,2]
[422496670,1778999446000,-659.567732,0.00027397,2]
[422496651,1778999446000,-915.0,0.00027397,2]
[422496625,1778999446000,-500.0,0.00027396,2]
[422496649,1778999446000,-915.0,0.00027397,2]
[422496675,1778999446000,-2786.56284,0.00027397,2]
[422496624,1778999446000,-558.07,0.00027391,2]
[422496626,1778999446000,-500.0,0.00027396,2]
[422496627,1778999446000,-300.0,0.00027396,10]
[422496631,1778999446000,-666.0,0.00027396,2]
[422496630,1778999446000,-300.0,0.00027396,10]
[422496633,1778999446000,-666.0,0.00027396,2]
[422496634,1778999446000,-308.86950042,0.00027396,10]
[422496628,1778999446000,-300.0,0.00027396,10]
[422496629,1778999446000,-500.0,0.00027396,2]
[422496632,1778999446000,-300.0,0.00027396,10]
[422496635,1778999446000,-300.0,0.00027396,10]
[422496652,1778999446000,-915.0,0.00027397,2]
[422496647,1778999446000,-915.0,0.00027397,2]
[422496636,1778999446000,-300.0,0.00027396,10]
[422496640,1778999446000,-151.0,0.00027397,2]
[422496639,1778999446000,-692.46000937,0.00027396,2]
[422496643,1778999446000,-915.0,0.00027397,2]
[422496638,1778999446000,-300.0,0.00027396,10]
[422496641,1778999446000,-151.0,0.00027397,2]
[422496642,1778999446000,-915.0,0.00027397,2]
[422496644,1778999446000,-915.0,0.00027397,2]
[422496645,1778999446000,-915.0,0.00027397,2]
[422496646,1778999446000,-500.0,0.00027397,2]
[422496648,1778999446000,-915.0,0.00027397,2]
[422496659,1778999446000,-915.0,0.00027397,2]
[422496637,1778999446000,-300.0,0.00027396,10]
[422496680,1778999446000,-260.765126,0.00027397,2]
[422496739,1778999446000,-150.0,0.000275,7]
[422496684,1778999446000,-151.0,0.00027397,2]
[422496715,1778999446000,-506.137418,0.00027397,2]
[422496718,1778999446000,-506.137418,0.00027397,2]
[422496712,1778999446000,-506.137418,0.00027397,2]
[422496716,1778999446000,-506.137418,0.00027397,2]
[422496717,1778999446000,-506.137418,0.00027397,2]
[422496720,1778999446000,-11318.28,0.00027397,10]
[422496722,1778999446000,-17986.01,0.00027397,10]
[422496723,1778999446000,-14988.34,0.00027397,10]
[422496721,1778999446000,-21583.21,0.00027397,10]
[422496726,1778999446000,-961.61,0.000274,7]
[422496729,1778999446000,-633.63,0.000274,7]
[422496731,1778999446000,-215.0785988,0.000274,10]
[422496719,1778999446000,-11774.04,0.00027397,10]
[422496727,1778999446000,-1045.76058024,0.000274,2]
[422496724,1778999446000,-166.77041051,0.00027397,30]
[422496725,1778999446000,-150.0,0.000274,7]
[422496732,1778999446000,-164.95214832,0.00027403,7]
[422496735,1778999446000,-164.95214832,0.00027433,7]
[422496734,1778999446000,-150.0,0.0002741,7]
[422496733,1778999446000,-150.0,0.0002741,7]
[422496736,1778999446000,-150.0,0.00027453,7]
[422496742,1778999446000,-150.0,0.00027514,7]
[422496737,1778999446000,-164.95214832,0.00027464,7]
[422496738,1778999446000,-164.95214832,0.00027494,7]
[422496740,1778999446000,-150.0,0.00027514,7]
[422496673,1778999446000,-2786.56284,0.00027397,2]
[422496730,1778999446000,-208.48490792,0.000274,10]
[422496711,1778999446000,-506.137418,0.00027397,2]
[422496728,1778999446000,-742.67993687,0.000274,2]
[422496714,1778999446000,-506.137418,0.00027397,2]
[422496683,1778999446000,-191.396274,0.00027397,2]
[422496713,1778999446000,-506.137418,0.00027397,2]
[422496686,1778999446000,-191.396274,0.00027397,2]
[422496689,1778999446000,-191.396274,0.00027397,2]
[422496685,1778999446000,-260.765126,0.00027397,2]
[422496687,1778999446000,-260.765126,0.00027397,2]
[422496688,1778999446000,-191.396274,0.00027397,2]
[422496690,1778999446000,-1500.0,0.00027397,2]
[422496691,1778999446000,-9502.86203782,0.00027397,21]
[422496692,1778999446000,-850.76,0.00027397,2]
[422496694,1778999446000,-258.199123,0.00027397,2]
[422496696,1778999446000,-258.199123,0.00027397,2]
[422496697,1778999446000,-1018.22,0.00027397,2]
[422496695,1778999446000,-258.199123,0.00027397,2]
[422496693,1778999446000,-258.199123,0.00027397,2]
[422496710,1778999446000,-151.0,0.00027397,2]
[422496709,1778999446000,-151.0,0.00027397,2]
[422496700,1778999446000,-300.0,0.00027397,2]
[422496707,1778999446000,-2354.816419,0.00027397,2]
[422496708,1778999446000,-2354.816419,0.00027397,2]
[422496702,1778999446000,-582.486377,0.00027397,2]
[422496706,1778999446000,-2354.816419,0.00027397,2]
[422496703,1778999446000,-582.486377,0.00027397,2]
[422496701,1778999446000,-582.486377,0.00027397,2]
[422496699,1778999446000,-151.0,0.00027397,2]
[422496698,1778999446000,-151.0,0.00027397,2]
[422496704,1778999446000,-582.486377,0.00027397,2]
[422496705,1778999446000,-2354.816419,0.00027397,2]
[422496798,1778999447000,-164.53494655,0.00027912,2]
[422496786,1778999447000,-150.0,0.00027816,4]
[422496789,1778999447000,-164.95214832,0.00027829,7]
[422496788,1778999447000,-150.0,0.00027825,7]
[422496787,1778999447000,-150.0,0.00027825,7]
[422496779,1778999447000,-2781.82699784,0.0002777,2]
[422496781,1778999447000,-169.22,0.00027789,3]
[422496783,1778999447000,-500.0,0.000278,7]
[422496780,1778999447000,-169.22,0.00027789,3]
[422496777,1778999447000,-150.0,0.00027744,7]
[422496804,1778999447000,-150.0,0.00027929,7]
[422496782,1778999447000,-164.95214832,0.00027798,7]
[422496800,1778999447000,-150.0,0.0002792,7]
[422496815,1778999447000,-150.0,0.00027959,7]
[422496791,1778999447000,-164.95214832,0.00027889,7]
[422496794,1778999447000,-150.0,0.00027902,7]
[422496790,1778999447000,-164.95214832,0.00027859,7]
[422496796,1778999447000,-197.07125808,0.0002791,21]
[422496792,1778999447000,-150.0,0.00027896,7]
[422496809,1778999447000,-221.12,0.00027948,2]
[422496806,1778999447000,-150.0,0.00027929,7]
[422496817,1778999447000,-164.95214832,0.00027981,7]
[422496826,1778999447000,-151.0,0.00028,7]
[422496811,1778999447000,-164.95214832,0.0002795,7]
[422496823,1778999447000,-151.0,0.00028,7]
[422496820,1778999447000,-150.0,0.00027984,7]
[422496778,1778999447000,-164.95214832,0.00027768,7]
[422496802,1778999447000,-164.95214832,0.0002792,7]
[422496776,1778999447000,-164.95214832,0.00027737,7]
[422496746,1778999447000,-150.0,0.00027529,4]
[422496775,1778999447000,-150.0,0.00027722,7]
[422496744,1778999447000,-164.95214832,0.00027524,7]
[422496750,1778999447000,-876.74088357,0.0002753,2]
[422496748,1778999447000,-150.0,0.00027529,7]
[422496758,1778999447000,-10000.0,0.00027592,2]
[422496759,1778999447000,-150.0,0.000276,7]
[422496751,1778999447000,-150.0,0.00027541,7]
[422496752,1778999447000,-164.95214832,0.00027555,7]
[422496760,1778999447000,-164.95214832,0.00027616,7]
[422496755,1778999447000,-284.63035055,0.00027582,2]
[422496757,1778999447000,-2537.05039193,0.0002759,2]
[422496813,1778999447000,-150.0,0.00027959,4]
[422496761,1778999447000,-150.0,0.00027618,7]
[422496756,1778999447000,-164.95214832,0.00027585,7]
[422496762,1778999447000,-150.0,0.00027618,7]
[422496764,1778999447000,-150.0,0.0002763,7]
[422496769,1778999447000,-164.95214832,0.00027676,7]
[422496765,1778999447000,-150.0,0.00027646,7]
[422496766,1778999447000,-164.95214832,0.00027646,7]
[422496763,1778999447000,-11016.55574828,0.00027622,2]
[422496771,1778999447000,-150.0,0.00027701,7]
[422496767,1778999447000,-603.0,0.00027671,2]
[422496772,1778999447000,-164.95214832,0.00027707,7]
[422496768,1778999447000,-150.0,0.00027672,4]
[422496770,1778999447000,-499.51038286,0.00027698,15]
[422496774,1778999447000,-150.0,0.00027722,7]
[422496784,1778999447000,-150.0,0.00027801,7]
[422496785,1778999447000,-150.0,0.00027807,7]
[422496773,1778999447000,-150.0,0.00027719,7]
[422496827,1778999447000,-582.486377,0.00028,7]
[422496754,1778999447000,-3292.0,0.0002756,2]
[422496829,1778999447000,-151.0,0.00028,7]
[422496884,1778999447000,-164.95214832,0.00028011,7]
[422496883,1778999447000,-183.71,0.0002801,7]
[422496885,1778999447000,-558.07,0.00028028,2]
[422496881,1778999447000,-697.83,0.00028,2]
[422496889,1778999447000,-164.95214832,0.00028072,7]
[422496888,1778999447000,-164.95214832,0.00028041,7]
[422496887,1778999447000,-150.0,0.00028033,7]
[422496891,1778999447000,-159.32971314,0.00028087,2]
[422496892,1778999447000,-150.0,0.00028102,4]
[422496893,1778999447000,-150.0,0.00028102,7]
[422496890,1778999447000,-150.0,0.00028073,7]
[422496894,1778999447000,-150.0,0.00028102,7]
[422496895,1778999447000,-164.95214832,0.00028102,7]
[422496896,1778999447000,-164.95214832,0.00028133,7]
[422496899,1778999447000,-394.0,0.00028153,10]
[422496897,1778999447000,-150.0,0.00028137,7]
[422496900,1778999447000,-204.0,0.00028161,10]
[422496898,1778999447000,-150.0,0.00028137,7]
[422496902,1778999447000,-164.95214832,0.00028163,7]
[422496905,1778999447000,-164.95214832,0.00028194,7]
[422496903,1778999447000,-150.0,0.00028174,7]
[422496901,1778999447000,-150.0,0.00028161,7]
[422496906,1778999447000,-162.0,0.00028197,10]
[422496909,1778999447000,-603.0,0.00028205,3]
[422496907,1778999447000,-486.04,0.00028197,2]
[422496904,1778999447000,-150.0,0.00028194,7]
[422496908,1778999447000,-150.0,0.00028203,7]
[422496886,1778999447000,-150.0,0.00028033,7]
[422496879,1778999447000,-697.83,0.00028,2]
[422496822,1778999447000,-151.0,0.00028,7]
[422496880,1778999447000,-697.83,0.00028,2]
[422496845,1778999447000,-215.0785988,0.00028,10]
[422496844,1778999447000,-2354.816419,0.00028,7]
[422496847,1778999447000,-850.996417,0.00028,7]
[422496831,1778999447000,-582.486377,0.00028,7]
[422496849,1778999447000,-850.996417,0.00028,7]
[422496833,1778999447000,-582.486377,0.00028,7]
[422496837,1778999447000,-2354.816419,0.00028,7]
[422496882,1778999447000,-150.0,0.00028002,7]
[422496841,1778999447000,-2354.816419,0.00028,7]
[422496835,1778999447000,-582.486377,0.00028,7]
[422496853,1778999447000,-176.847513,0.00028,7]
[422496851,1778999447000,-850.996417,0.00028,7]
[422496855,1778999447000,-850.996417,0.00028,7]
[422496857,1778999447000,-176.847513,0.00028,7]
[422496839,1778999447000,-2354.816419,0.00028,7]
[422496860,1778999447000,-176.847513,0.00028,7]
[422496858,1778999447000,-176.847513,0.00028,7]
[422496878,1778999447000,-697.83,0.00028,2]
[422496876,1778999447000,-697.83,0.00028,2]
[422496875,1778999447000,-697.83,0.00028,2]
[422496872,1778999447000,-697.83,0.00028,2]
[422496877,1778999447000,-697.83,0.00028,2]
[422496873,1778999447000,-697.83,0.00028,2]
[422496870,1778999447000,-1196.253496,0.00028,7]
[422496868,1778999447000,-1196.253496,0.00028,7]
[422496874,1778999447000,-697.83,0.00028,2]
[422496864,1778999447000,-215.0785988,0.00028,7]
[422496862,1778999447000,-1196.253496,0.00028,7]
[422496866,1778999447000,-1196.253496,0.00028,7]
[422496946,1778999448000,-150.0,0.00028552,7]
[422496953,1778999448000,-150.0,0.00028604,7]
[422496952,1778999448000,-150.0,0.00028604,7]
[422496950,1778999448000,-150.0,0.00028604,7]
[422496948,1778999448000,-164.95214832,0.00028589,7]
[422496940,1778999448000,-164.95214832,0.00028498,7]
[422496947,1778999448000,-164.95214832,0.00028558,7]
[422496942,1778999448000,-150.0,0.00028516,7]
[422496945,1778999448000,-150.0,0.00028552,7]
[422496944,1778999448000,-150.0,0.00028532,4]
[422496941,1778999448000,-150.0,0.00028504,7]
[422496943,1778999448000,-164.95214832,0.00028528,7]
[422496954,1778999448000,-164.95214832,0.00028619,7]
[422496967,1778999448000,-3473.42,0.0002863,2]
[422496960,1778999448000,-250.717475,0.0002863,7]
[422496957,1778999448000,-250.717475,0.0002863,7]
[422496951,1778999448000,-150.0,0.00028604,7]
[422496956,1778999448000,-300.0,0.00028629,10]
[422496955,1778999448000,-300.0,0.00028629,10]
[422496958,1778999448000,-250.717475,0.0002863,7]
[422496961,1778999448000,-2219.541369,0.0002863,7]
[422496963,1778999448000,-2219.541369,0.0002863,7]
[422496970,1778999448000,-1952.05,0.0002863,2]
[422496973,1778999448000,-150.0,0.00028656,7]
[422496962,1778999448000,-2219.541369,0.0002863,7]
[422496966,1778999448000,-1950.27,0.0002863,2]
[422496938,1778999448000,-162.09,0.00028483,2]
[422496959,1778999448000,-250.717475,0.0002863,7]
[422496949,1778999448000,-633.63,0.000286,7]
[422496919,1778999448000,-150.0,0.00028303,7]
[422496934,1778999448000,-150.0,0.00028448,7]
[422496965,1778999448000,-783.97,0.0002863,2]
[422496912,1778999448000,-150.0,0.00028241,7]
[422496913,1778999448000,-150.0,0.00028241,7]
[422496910,1778999448000,-164.95214832,0.00028224,7]
[422496911,1778999448000,-153.47,0.0002823,2]
[422496915,1778999448000,-150.0,0.0002825,7]
[422496925,1778999448000,-164.95214832,0.00028346,7]
[422496917,1778999448000,-962.4,0.00028267,2]
[422496914,1778999448000,-150.0,0.00028246,4]
[422496916,1778999448000,-164.95214832,0.00028254,7]
[422496924,1778999448000,-150.0,0.00028345,7]
[422496922,1778999448000,-150.0,0.00028338,7]
[422496920,1778999448000,-164.95214832,0.00028315,7]
[422496918,1778999448000,-164.95214832,0.00028285,7]
[422496923,1778999448000,-150.0,0.00028345,7]
[422496921,1778999448000,-2884.75459676,0.00028318,2]
[422496928,1778999448000,-150.0,0.00028389,7]
[422496926,1778999448000,-164.95214832,0.00028376,7]
[422496929,1778999448000,-1612.97,0.000284,7]
[422496930,1778999448000,-150.0,0.00028403,7]
[422496937,1778999448000,-164.95214832,0.00028467,7]
[422496927,1778999448000,-150.0,0.00028389,4]
[422496932,1778999448000,-150.0,0.00028427,7]
[422496931,1778999448000,-164.95214832,0.00028406,7]
[422496936,1778999448000,-150.0,0.00028467,7]
[422496935,1778999448000,-150.0,0.00028448,7]
[422496933,1778999448000,-164.95214832,0.00028437,7]
[422496939,1778999448000,-9502.86203783,0.00028484,21]
[422496969,1778999448000,-785.05,0.0002863,2]
[422496964,1778999448000,-2219.541369,0.0002863,7]
[422496971,1778999448000,-3467.25,0.0002863,2]
[422497009,1778999448000,-783.97,0.00028756,7]
[422497005,1778999448000,-3467.25,0.00028725,2]
[422497007,1778999448000,-150.0,0.00028741,7]
[422497004,1778999448000,-1952.05,0.00028725,2]
[422497010,1778999448000,-1950.27,0.00028756,7]
[422497006,1778999448000,-603.0,0.00028739,3]
[422497008,1778999448000,-164.95214832,0.00028741,7]
[422497024,1778999448000,-160.0,0.00028788,30]
[422497013,1778999448000,-785.05,0.00028756,7]
[422497020,1778999448000,-164.95214832,0.00028771,7]
[422497018,1778999448000,-500.0,0.00028767,2]
[422497023,1778999448000,-300.0,0.00028787,10]
[422497021,1778999448000,-150.0,0.00028781,7]
[422497000,1778999448000,-1950.27,0.00028725,2]
[422497012,1778999448000,-544.05,0.00028756,7]
[422497015,1778999448000,-3467.25,0.00028756,7]
[422497016,1778999448000,-150.0,0.0002876,7]
[422497019,1778999448000,-215.498386,0.00028767,7]
[422497017,1778999448000,-150.0,0.0002876,7]
[422497028,1778999448000,-544.05,0.00028788,30]
[422497025,1778999448000,-783.97,0.00028788,30]
[422497026,1778999448000,-1950.27,0.00028788,30]
[422497032,1778999448000,-164.95214832,0.00028802,7]
[422497027,1778999448000,-3473.42,0.00028788,30]
[422497031,1778999448000,-3467.25,0.00028788,30]
[422497029,1778999448000,-785.05,0.00028788,30]
[422497030,1778999448000,-1952.05,0.00028788,30]
[422496968,1778999448000,-544.05,0.0002863,2]
[422497022,1778999448000,-300.0,0.00028787,10]
[422497011,1778999448000,-3473.42,0.00028756,7]
[422497014,1778999448000,-1952.05,0.00028756,7]
[422497003,1778999448000,-785.05,0.00028725,2]
[422497001,1778999448000,-3473.42,0.00028725,2]
[422496976,1778999448000,-783.97,0.00028661,7]
[422496979,1778999448000,-544.05,0.00028661,7]
[422496977,1778999448000,-1950.27,0.00028661,7]
[422496980,1778999448000,-785.05,0.00028661,7]
[422496981,1778999448000,-1952.05,0.00028661,7]
[422496982,1778999448000,-3467.25,0.00028661,7]
[422496974,1778999448000,-150.0,0.00028656,7]
[422496978,1778999448000,-3473.42,0.00028661,7]
[422496985,1778999448000,-164.95214832,0.0002868,7]
[422496975,1778999448000,-300.0,0.0002866,10]
[422496984,1778999448000,-150.0,0.00028676,4]
[422496983,1778999448000,-486.04,0.00028667,2]
[422496987,1778999448000,-300.0,0.00028692,10]
[422496972,1778999448000,-164.95214832,0.0002865,7]
[422496988,1778999448000,-150.0,0.00028693,7]
[422496998,1778999448000,-164.95214832,0.00028711,7]
[422496999,1778999448000,-783.97,0.00028725,2]
[422496992,1778999448000,-544.05,0.00028693,30]
[422496994,1778999448000,-1952.05,0.00028693,30]
[422496996,1778999448000,-208.48490792,0.000287,30]
[422496995,1778999448000,-3467.25,0.00028693,30]
[422497002,1778999448000,-544.05,0.00028725,2]
[422496991,1778999448000,-3473.42,0.00028693,30]
[422496997,1778999448000,-150.0,0.00028704,7]
[422496986,1778999448000,-151.0,0.0002869,7]
[422496990,1778999448000,-1950.27,0.00028693,30]
[422496989,1778999448000,-783.97,0.00028693,30]
[422496993,1778999448000,-785.05,0.00028693,30]
[422497080,1778999449000,-1028.0,0.00028904,2]
[422497078,1778999449000,-164.95214832,0.00028893,7]
[422497076,1778999449000,-1952.05,0.00028883,30]
[422497070,1778999449000,-542.95,0.00028883,30]
[422497075,1778999449000,-785.05,0.00028883,30]
[422497071,1778999449000,-783.97,0.00028883,30]
[422497065,1778999449000,-2537.05039193,0.00028864,2]
[422497066,1778999449000,-2322.91928785,0.00028866,2]
[422497069,1778999449000,-398.91020292,0.0002888,10]
[422497067,1778999449000,-150.0,0.0002887,7]
[422497063,1778999449000,-150.0,0.00028864,7]
[422497082,1778999449000,-150.0,0.00028905,7]
[422497068,1778999449000,-300.0,0.0002888,10]
[422497079,1778999449000,-208.48490792,0.000289,7]
[422497086,1778999449000,-3473.42,0.00028915,2]
[422497088,1778999449000,-785.05,0.00028915,2]
[422497083,1778999449000,-542.95,0.00028915,2]
[422497077,1778999449000,-3467.25,0.00028883,30]
[422497087,1778999449000,-544.05,0.00028915,2]
[422497084,1778999449000,-783.97,0.00028915,2]
[422497085,1778999449000,-1950.27,0.00028915,2]
[422497089,1778999449000,-1952.05,0.00028915,2]
[422497099,1778999449000,-544.05,0.00028947,7]
[422497094,1778999449000,-200.0,0.00028946,2]
[422497098,1778999449000,-3473.42,0.00028947,7]
[422497092,1778999449000,-500.0,0.00028946,30]
[422497091,1778999449000,-164.95214832,0.00028923,7]
[422497074,1778999449000,-544.05,0.00028883,30]
[422497081,1778999449000,-9533.0,0.00028904,2]
[422497073,1778999449000,-3473.42,0.00028883,30]
[422497034,1778999449000,-150.0,0.00028819,7]
[422497064,1778999449000,-150.0,0.00028864,7]
[422497090,1778999449000,-3467.25,0.00028915,2]
[422497035,1778999449000,-150.0,0.00028819,4]
[422497037,1778999449000,-151.0,0.0002882,7]
[422497036,1778999449000,-151.0,0.0002882,7]
[422497033,1778999449000,-150.0,0.00028805,7]
[422497038,1778999449000,-151.0,0.0002882,7]
[422497040,1778999449000,-157.914068,0.0002882,7]
[422497050,1778999449000,-785.05,0.0002882,2]
[422497051,1778999449000,-1952.05,0.0002882,2]
[422497043,1778999449000,-262.597918,0.0002882,7]
[422497042,1778999449000,-262.597918,0.0002882,7]
[422497041,1778999449000,-262.597918,0.0002882,7]
[422497044,1778999449000,-262.597918,0.0002882,7]
[422497045,1778999449000,-542.95,0.0002882,2]
[422497046,1778999449000,-783.97,0.0002882,2]
[422497049,1778999449000,-544.05,0.0002882,2]
[422497047,1778999449000,-1950.27,0.0002882,2]
[422497048,1778999449000,-3473.42,0.0002882,2]
[422497053,1778999449000,-164.95214832,0.00028832,7]
[422497052,1778999449000,-3467.25,0.0002882,2]
[422497061,1778999449000,-3467.25,0.00028852,7]
[422497062,1778999449000,-164.95214832,0.00028863,7]
[422497058,1778999449000,-544.05,0.00028852,7]
[422497054,1778999449000,-542.95,0.00028852,7]
[422497055,1778999449000,-783.97,0.00028852,7]
[422497056,1778999449000,-1950.27,0.00028852,7]
[422497059,1778999449000,-785.05,0.00028852,7]
[422497057,1778999449000,-3473.42,0.00028852,7]
[422497060,1778999449000,-1952.05,0.00028852,7]
[422497072,1778999449000,-1950.27,0.00028883,30]
[422497095,1778999449000,-542.95,0.00028947,7]
[422497039,1778999449000,-151.0,0.0002882,7]
[422497100,1778999449000,-785.05,0.00028947,7]
[422497134,1778999449000,-783.97,0.00029042,7]
[422497130,1778999449000,-150.0,0.00029015,7]
[422497141,1778999449000,-164.95214832,0.00029045,7]
[422497132,1778999449000,-150.0,0.00029034,7]
[422497136,1778999449000,-3473.42,0.00029042,7]
[422497135,1778999449000,-1950.27,0.00029042,7]
[422497140,1778999449000,-3467.25,0.00029042,7]
[422497137,1778999449000,-544.05,0.00029042,7]
[422497138,1778999449000,-785.05,0.00029042,7]
[422497139,1778999449000,-1952.05,0.00029042,7]
[422497143,1778999449000,-150.0,0.00029071,7]
[422497144,1778999449000,-150.0,0.00029071,7]
[422497145,1778999449000,-542.95,0.00029074,30]
[422497147,1778999449000,-1950.27,0.00029074,30]
[422497154,1778999449000,-961.61,0.000291,7]
[422497146,1778999449000,-783.97,0.00029074,30]
[422497153,1778999449000,-164.95214832,0.00029076,7]
[422497152,1778999449000,-3467.25,0.00029074,30]
[422497149,1778999449000,-544.05,0.00029074,30]
[422497159,1778999449000,-544.05,0.00029105,2]
[422497151,1778999449000,-1952.05,0.00029074,30]
[422497148,1778999449000,-3473.42,0.00029074,30]